bitfinex-derivatives/quotes_BTCF0:USTF0_20250101
["timestamp","ask_amount","ask_price","bid_price","bid_amount"]
[1735752662239,0.29187058,94047.0,94046.0,0.414074]
[1735752662535,0.12393051,94047.0,94046.0,0.414074]
[1735752662739,0.10633603,94047.0,94046.0,0.414074]
[1735752663034,0.032,94060.0,94046.0,0.414074]
[1735752663338,0.15959837,94057.0,94056.0,0.053268]
[1735752663929,0.053268,94057.0,94056.0,0.053268]
[1735752664329,0.15959837,94057.0,94056.0,0.053268]
[1735752664531,0.16059837,94057.0,94056.0,0.053268]
[1735752666425,0.10733037,94057.0,94056.0,0.053268]
[1735752666626,0.10633037,94057.0,94056.0,0.053268]
[1735752666830,0.10733037,94057.0,94056.0,0.053268]
[1735752674142,0.00287762,94064.0,94056.0,0.053268]
[1735752674335,0.0329,94074.0,94056.0,0.053268]
[1735752674539,0.10631907,94057.0,94056.0,0.053268]
[1735752674743,0.053264,94064.0,94063.0,0.053264]
[1735752675340,0.15958307,94064.0,94063.0,0.053264]
[1735752682050,0.10631907,94064.0,94063.0,0.053264]
[1735752682445,0.10631907,94064.0,94063.0,0.414064]
[1735752684148,0.053261,94069.0,94063.0,0.3608]
[1735752684347,0.053261,94069.0,94068.0,0.053262]
[1735752684740,0.15957216,94069.0,94068.0,0.053262]
[1735752685349,0.10631116,94069.0,94068.0,0.053262]
[1735752685545,0.10631116,94069.0,94068.0,0.054262]
[1735752685751,0.053259,94073.0,94072.0,0.053259]
[1735752685949,0.053259,94073.0,94072.0,0.414059]
[1735752686149,0.0161327,94077.0,94074.0,0.053258]
[1735752686345,0.0693897,94077.0,94074.0,0.053258]
[1735752686855,0.20630099,94075.0,94074.0,0.053258]
[1735752688051,0.20630099,94075.0,94074.0,0.06973468]
[1735752688862,0.20630099,94075.0,94074.0,0.07073468]
[1735752689253,0.1,94075.0,94074.0,0.07073468]
[1735752689457,0.09939762,94075.0,94074.0,0.07073468]
[1735752723377,0.00916405,94091.0,94074.0,0.07073468]
[1735752723578,0.0316,94092.0,94090.0,0.3608]
[1735752723771,0.053249,94091.0,94090.0,0.414049]
[1735752723967,0.15954773,94091.0,94090.0,0.414049]
[1735752724887,0.15954773,94091.0,94090.0,0.415049]
[1735752725782,0.15954773,94091.0,94090.0,0.416049]
[1735752729072,0.10629873,94091.0,94090.0,0.416049]
[1735752729375,0.10629873,94091.0,94090.0,0.776849]
[1735752735074,0.10629873,94091.0,94090.0,0.779849]
[1735752735586,0.10629873,94091.0,94090.0,0.777849]
[1735752735770,0.10629873,94091.0,94090.0,0.779849]
[1735752736584,0.10629873,94091.0,94090.0,0.778849]
[1735752737980,0.10629873,94091.0,94090.0,0.776849]
[1735752743590,0.10629873,94091.0,94090.0,0.777849]
[1735752743791,0.10629873,94091.0,94090.0,0.776849]
[1735752743991,0.10629873,94091.0,94090.0,0.781849]
[1735752744490,0.15954773,94091.0,94090.0,0.777849]
[1735752745285,0.15954773,94091.0,94090.0,0.776849]
[1735752745496,0.15954773,94091.0,94090.0,0.3628]
[1735752746490,0.15954773,94091.0,94090.0,0.3638]
[1735752746905,0.15954773,94091.0,94090.0,0.3658]
[1735752747406,0.15954773,94091.0,94090.0,0.3638]
[1735752747702,0.15954773,94091.0,94090.0,0.003]
[1735752748301,0.15954773,94091.0,94090.0,0.001]
[1735752748603,0.15954773,94091.0,94090.0,0.002]
[1735752748789,0.45954773,94091.0,94076.0,0.3608]
[1735752748994,0.053257,94077.0,94076.0,0.3608]
[1735752749705,0.15953765,94077.0,94076.0,0.3608]
[1735752749900,0.15953765,94077.0,94076.0,0.3648]
[1735752750103,0.15953765,94077.0,94076.0,0.3728]
[1735752753806,0.17389595,94077.0,94076.0,0.3728]
[1735752768418,0.17389595,94077.0,94076.0,0.31282931]
[1735752770819,0.17389595,94077.0,94076.0,0.012]
[1735752773218,0.17389595,94077.0,94076.0,0.004]
[1735752773715,0.17389595,94077.0,94068.0,0.3608]
[1735752773716,0.053261,94069.0,94068.0,0.3608]
[1735752774417,0.15955747,94069.0,94068.0,0.3608]
[1735752774810,0.15955747,94069.0,94068.0,0.3628]
[1735752776210,0.15955747,94069.0,94068.0,0.3638]
[1735752777922,0.15955747,94069.0,94068.0,0.3628]
[1735752784121,0.10965747,94069.0,94068.0,0.3628]
[1735752784320,0.05439647,94069.0,94068.0,0.3628]
[1735752784518,0.05439647,94069.0,94068.0,0.416062]
[1735752784720,0.053259,94074.0,94072.0,0.053259]
[1735752785120,0.15956451,94073.0,94072.0,0.053259]
[1735752785527,0.053259,94073.0,94072.0,0.053259]
[1735752787234,0.053259,94073.0,94072.0,0.055259]
[1735752787615,0.053259,94073.0,94072.0,0.059259]
[1735752797029,0.053256,94078.0,94077.0,0.053255]
[1735752797239,0.053256,94078.0,94077.0,0.414055]
[1735752798024,0.15955134,94078.0,94077.0,0.414055]
[1735752799137,0.15955134,94078.0,94077.0,0.418055]
[1735752799532,0.15955134,94078.0,94077.0,0.420055]
[1735752799735,0.15955134,94078.0,94077.0,0.418055]
[1735752800236,0.15955134,94078.0,94077.0,0.417055]
[1735752802641,0.15955134,94078.0,94077.0,0.418055]
[1735752802940,0.15955134,94078.0,94077.0,0.419055]
[1735752805341,0.15955134,94078.0,94077.0,0.417055]
[1735752805542,0.15955134,94078.0,94077.0,0.419055]
[1735752806937,0.15955134,94078.0,94077.0,0.417055]
[1735752807245,0.15955134,94078.0,94077.0,0.419055]
[1735752808735,0.15955134,94078.0,94077.0,0.416055]
[1735752808946,0.15955134,94078.0,94077.0,0.419055]
[1735752809139,0.15955134,94078.0,94077.0,0.417055]
[1735752809341,0.15955134,94078.0,94077.0,0.419055]
[1735752812041,0.15955134,94078.0,94077.0,0.418055]
[1735752819051,0.10629534,94078.0,94077.0,0.418055]
[1735752819442,0.01294203,94082.0,94080.0,0.053255]
[1735752819645,0.053253,94084.0,94080.0,0.053255]
[1735752819646,0.10629534,94081.0,94080.0,0.053255]
[1735752820045,0.053253,94083.0,94080.0,0.053255]
[1735752820354,0.10629138,94081.0,94080.0,0.053255]
[1735752820543,0.053253,94083.0,94080.0,0.053255]
[1735752820847,0.10629138,94082.0,94080.0,0.053255]
[1735752821248,0.053253,94083.0,94080.0,0.053255]
[1735752821457,0.10629195,94081.0,94080.0,0.053255]
[1735752821651,0.10629195,94081.0,94080.0,0.054255]
[1735752821953,0.053253,94083.0,94080.0,0.415055]
[1735752822154,0.10629195,94081.0,94080.0,0.415055]
[1735752822352,0.053253,94083.0,94080.0,0.415055]
[1735752822755,0.10629195,94082.0,94080.0,0.416055]
[1735752823967,0.3608,94081.0,94080.0,0.002]
[1735752824255,0.053265,94063.0,94061.0,0.00159457]
[1735752824452,0.0627,94062.0,94061.0,0.00159457]
[1735752824644,0.0944,94062.0,94061.0,0.00159457]
[1735752825250,0.20071342,94062.0,94061.0,0.00559457]
[1735752825854,0.20071342,94062.0,94061.0,0.01459457]
[1735752826049,0.20071342,94062.0,94061.0,0.004]
[1735752826252,0.053267,94059.0,94057.0,0.03997531]
[1735752826850,0.10631737,94058.0,94057.0,0.03997531]
[1735752828361,0.10631737,94058.0,94057.0,0.04897531]
[1735752828750,0.10631737,94058.0,94057.0,0.05297531]
[1735752828961,0.10731737,94058.0,94057.0,0.05297531]
[1735752832657,0.11223213,94061.0,94057.0,0.05297531]
[1735752832963,0.10747617,94062.0,94057.0,0.05297531]
[1735752832964,0.10631794,94058.0,94057.0,0.05297531]
[1735752833166,0.053267,94059.0,94057.0,0.05297531]
[1735752833556,0.10631794,94058.0,94057.0,0.05297531]
[1735752834452,0.10631794,94058.0,94057.0,0.04397531]
[1735752834650,0.10631794,94058.0,94057.0,0.05297531]
[1735752834855,0.10631794,94058.0,94057.0,0.04897531]
[1735752835166,0.10731794,94058.0,94057.0,0.05297531]
[1735752854867,0.001,94058.0,94057.0,0.05297531]
[1735752862564,0.16789521,94086.0,94085.0,0.053252]
[1735752862771,0.18030124,94086.0,94085.0,0.053252]
[1735752863265,0.28658754,94086.0,94085.0,0.053252]
[1735752863665,0.28758754,94086.0,94085.0,0.053252]
[1735752864771,0.17294433,94086.0,94085.0,0.053252]
[1735752864973,0.17594433,94086.0,94085.0,0.053252]
[1735752866066,0.17394433,94086.0,94085.0,0.053252]
[1735752866266,0.17494433,94086.0,94085.0,0.053252]
[1735752871480,0.28956992,94086.0,94085.0,0.053252]
[1735752877883,0.053255,94081.0,94080.0,0.053255]
[1735752878086,0.053258,94076.0,94075.0,0.053257]
[1735752878482,0.1595443,94076.0,94075.0,0.053257]
[1735752879780,0.1595443,94076.0,94075.0,0.054257]
[1735752880776,0.1595443,94076.0,94075.0,0.057257]
[1735752890882,0.00150776,94076.0,94075.0,0.057257]
[1735752903496,0.14511749,94087.0,94075.0,0.004]
[1735752903696,0.14511749,94087.0,94086.0,0.414051]
[1735752904187,0.25140266,94087.0,94086.0,0.414051]
[1735752904591,0.10628517,94087.0,94086.0,0.414051]
[1735752904799,0.10828517,94087.0,94086.0,0.414051]
[1735752905101,0.002,94087.0,94086.0,0.414051]
[1735752905293,0.10828517,94087.0,94086.0,0.414051]
[1735752906592,0.10928517,94087.0,94086.0,0.414051]
[1735752907795,0.10928517,94087.0,94086.0,0.42559709]
[1735752908598,0.10928517,94087.0,94086.0,0.414051]
[1735752913402,0.003,94087.0,94086.0,0.414051]
[1735752915311,0.003,94087.0,94086.0,0.446951]
[1735752915899,0.002,94087.0,94086.0,0.449951]
[1735752918302,0.2,94100.0,94099.0,0.053244]
[1735752919108,0.30628517,94100.0,94099.0,0.053244]
[1735752919614,0.30628517,94100.0,94099.0,0.054244]
[1735752931916,0.42088673,94100.0,94099.0,0.054244]
[1735752937420,0.31460156,94100.0,94099.0,0.054244]
[1735752938020,0.2,94100.0,94099.0,0.054244]
[1735752957842,0.20004991,94100.0,94099.0,0.054244]
[1735752960751,0.031,94113.0,94112.0,0.053237]
[1735752960939,0.06329415,94119.0,94118.0,0.053233]
[1735752961559,0.16954318,94119.0,94118.0,0.053233]
[1735752962354,0.17654318,94119.0,94118.0,0.054233]
[1735752963247,0.01133355,94119.0,94118.0,0.054233]
[1735752964548,0.01433355,94119.0,94118.0,0.054233]
[1735752965952,0.02269355,94124.0,94123.0,0.05323]
[1735752966544,0.12893694,94124.0,94123.0,0.05323]
[1735752966946,0.13293694,94124.0,94123.0,0.05323]
[1735752967554,0.001,94124.0,94123.0,0.05423]
[1735752967755,0.10724339,94124.0,94123.0,0.05423]
[1735752971349,0.001,94124.0,94123.0,0.05423]
[1735752972753,0.001,94124.0,94123.0,0.06539406]
[1735752972956,0.11457144,94145.0,94144.0,0.053219]
[1735752973162,0.11457144,94145.0,94144.0,0.414019]
[1735752973653,0.0646,94159.0,94144.0,0.414019]
[1735752973851,0.0646,94159.0,94149.0,0.053216]
[1735752974954,0.126,94150.0,94149.0,0.053216]
[1735752975349,0.126,94150.0,94149.0,0.054216]
[1735752976458,0.126,94150.0,94149.0,0.06565885]
[1735752977445,0.126,94150.0,94149.0,0.054216]
[1735752977651,0.23221405,94150.0,94149.0,0.054216]
[1735752982055,0.126,94150.0,94149.0,0.054216]
[1735752983850,0.23221405,94150.0,94149.0,0.054216]
[1735752993163,0.126,94150.0,94149.0,0.054216]
[1735752995870,0.06479725,94168.0,94164.0,0.053206]
[1735752996071,0.06479725,94168.0,94166.0,0.053206]
[1735752996560,0.10619544,94167.0,94166.0,0.053206]
[1735752997772,0.10619544,94167.0,94166.0,0.054206]
[1735753009280,0.10619544,94167.0,94166.0,0.001]
[1735753024283,0.40619544,94167.0,94135.0,0.3608]
[1735753024481,0.07146381,94154.0,94135.0,0.3608]
[1735753024679,0.0628,94153.0,94135.0,0.3608]
[1735753025089,0.13639487,94152.0,94135.0,0.3608]
[1735753025480,0.3608,94150.0,94135.0,0.3608]
[1735753026086,0.3608,94142.0,94130.0,0.00159333]
[1735753026275,0.14292762,94140.0,94130.0,0.00159333]
[1735753026482,0.14292762,94140.0,94125.0,0.3608]
[1735753026682,0.07146381,94135.0,94125.0,0.3608]
[1735753026985,0.0628,94134.0,94125.0,0.3608]
[1735753027284,0.16902928,94134.0,94125.0,0.3608]
[1735753027482,0.16902928,94134.0,94100.0,0.3608]
[1735753027483,0.7216,94132.0,94100.0,0.3608]
[1735753027789,0.43226381,94120.0,94100.0,0.43226381]
[1735753028294,0.76952573,94120.0,94100.0,0.3608]
[1735753028484,0.3608,94120.0,94100.0,0.46952573]
[1735753028684,0.10625637,94119.0,94100.0,0.46952573]
[1735753029586,0.10625637,94119.0,94104.0,0.00859402]
[1735753030184,0.10625637,94119.0,94104.0,0.01759402]
[1735753030387,0.12023274,94119.0,94104.0,0.01759402]
[1735753039604,0.12023274,94119.0,94104.0,0.016]
[1735753045308,0.12023274,94119.0,94108.0,0.3608]
[1735753045605,0.12023274,94119.0,94109.0,0.0634]
[1735753046999,0.12023274,94119.0,94109.0,0.0724]
[1735753047197,0.12023274,94119.0,94109.0,0.0784]
[1735753048506,0.12023274,94119.0,94116.0,0.3608]
[1735753048804,0.10625637,94119.0,94116.0,0.3608]
[1735753049207,0.01792681,94120.0,94116.0,0.3608]
[1735753049399,0.10625411,94118.0,94116.0,0.3608]
[1735753049596,0.10625411,94118.0,94116.0,0.3648]
[1735753049797,0.10872573,94130.0,94116.0,0.3648]
[1735753050004,0.1062496,94129.0,94116.0,0.3648]
[1735753050406,0.10872573,94130.0,94116.0,0.3738]
[1735753050603,0.10624452,94129.0,94116.0,0.3738]
[1735753059098,0.3608,94117.0,94099.0,0.01602558]
[1735753059300,0.3608,94100.0,94098.0,0.19173338]
[1735753059695,0.10626089,94099.0,94098.0,0.19173338]
[1735753060503,0.07133834,94109.0,94098.0,0.20073338]
[1735753060702,0.10627161,94099.0,94098.0,0.009]
[1735753061107,0.07133834,94109.0,94094.0,0.3608]
[1735753061306,0.10627161,94099.0,94098.0,0.009]
[1735753061706,0.07133834,94104.0,94098.0,0.009]
[1735753061916,0.10626823,94103.0,94098.0,0.009]
[1735753062206,0.001,94099.0,94098.0,0.016]
[1735753062805,0.001,94104.0,94098.0,0.015]
[1735753063009,0.10627161,94099.0,94098.0,0.006]
[1735753063199,0.03918422,94108.0,94098.0,0.006]
[1735753063400,0.10627161,94099.0,94098.0,0.006]
[1735753063606,0.10727161,94099.0,94098.0,0.006]
[1735753063807,0.002,94099.0,94098.0,0.015]
[1735753064010,0.10826653,94099.0,94098.0,0.015]
[1735753065212,0.10726653,94099.0,94098.0,0.016]
[1735753066008,0.10826653,94099.0,94098.0,0.015]
[1735753067012,0.10726653,94099.0,94098.0,0.013]
[1735753067215,0.10626653,94099.0,94098.0,0.004]
[1735753067412,0.10726653,94099.0,94098.0,0.013]
[1735753067713,0.001,94099.0,94098.0,0.013]
[1735753067935,0.10727161,94099.0,94098.0,0.013]
[1735753071029,0.10727161,94099.0,94098.0,0.066245]
[1735753082847,0.10727161,94099.0,94098.0,0.013]
[1735753098149,0.10727161,94099.0,94098.0,0.0454]
[1735753100354,0.10727161,94099.0,94098.0,0.098645]
[1735753111162,0.001,94099.0,94098.0,0.098645]
[1735753135171,0.001,94099.0,94098.0,1.598645]
[1735753136080,0.001,94099.0,94098.0,0.098645]
[1735753138977,0.01473369,94123.0,94116.0,0.053234]
[1735753139183,0.01473369,94123.0,94122.0,0.053231]
[1735753139385,0.0329,94128.0,94127.0,0.053228]
[1735753139992,0.13917161,94128.0,94127.0,0.053228]
[1735753140488,0.14017161,94128.0,94127.0,0.053228]
[1735753142081,0.14117161,94128.0,94127.0,0.053228]
[1735753144289,0.10827161,94128.0,94127.0,0.053228]
[1735753158107,0.002,94128.0,94127.0,0.053228]
[1735753169211,0.10823887,94128.0,94127.0,0.053228]
[1735753172104,0.10623887,94128.0,94127.0,0.060228]
[1735753172402,0.0315,94140.0,94127.0,0.060228]
[1735753172609,0.0315,94140.0,94138.0,0.053221]
[1735753172808,0.10623887,94139.0,94138.0,0.053221]
[1735753173313,0.0315,94140.0,94138.0,0.053221]
[1735753173518,0.10622589,94139.0,94138.0,0.053221]
[1735753176619,0.33371905,94141.0,94138.0,0.053221]
[1735753176818,0.10622646,94139.0,94138.0,0.053221]
[1735753177020,0.33371905,94141.0,94138.0,0.053221]
[1735753177319,0.10622533,94139.0,94138.0,0.053221]
[1735753177521,0.33371905,94141.0,94138.0,0.053221]
[1735753177715,0.10622533,94140.0,94138.0,0.053221]
[1735753178111,0.33371905,94141.0,94138.0,0.053221]
[1735753178416,0.10622533,94140.0,94128.0,0.3608]
[1735753178619,0.17758416,94140.0,94120.0,0.3608]
[1735753178925,0.3608,94123.0,94120.0,0.106462]
[1735753179221,0.3608,94131.0,94120.0,0.053231]
[1735753179413,0.0633,94130.0,94124.0,0.053228]
[1735753179615,0.0944,94130.0,94124.0,0.053228]
[1735753179822,0.10623605,94129.0,94128.0,0.005]
[1735753180213,0.10623605,94129.0,94128.0,0.058228]
[1735753181818,0.3608,94138.0,94137.0,0.053223]
[1735753182222,0.46703774,94138.0,94137.0,0.053223]
[1735753183225,0.46803774,94138.0,94137.0,0.053223]
[1735753183627,0.46903774,94138.0,94137.0,0.053223]
[1735753184626,0.47003774,94138.0,94137.0,0.053223]
[1735753186822,0.46903774,94138.0,94137.0,0.053223]
[1735753188243,0.46803774,94138.0,94137.0,0.053223]
[1735753188741,0.46703774,94138.0,94137.0,0.053223]
[1735753190336,0.46703774,94138.0,94126.0,0.3608]
[1735753190337,0.46703774,94138.0,94131.0,0.053226]
[1735753190545,0.46703774,94138.0,94134.0,0.053224]
[1735753191438,0.46803774,94138.0,94134.0,0.053224]
[1735753192150,0.46703774,94138.0,94134.0,0.053224]
[1735753194646,0.46703774,94138.0,94134.0,0.055224]
[1735753195246,0.11456019,94137.0,94134.0,0.055224]
[1735753195839,0.10622928,94136.0,94134.0,0.055224]
[1735753196246,0.10622928,94136.0,94134.0,0.053224]
[1735753198545,0.10622928,94136.0,94134.0,0.055224]
[1735753203350,0.3608,94138.0,94134.0,0.055224]
[1735753203657,0.10623041,94137.0,94134.0,0.055224]
[1735753203844,0.3608,94138.0,94134.0,0.055224]
[1735753204151,0.10622984,94136.0,94134.0,0.055224]
[1735753204354,0.3608,94138.0,94134.0,0.055224]
[1735753204745,0.10622984,94137.0,94134.0,0.055224]
[1735753205647,0.10622984,94137.0,94135.0,0.0306]
[1735753206655,0.10622984,94137.0,94135.0,0.083824]
[1735753206846,0.10622984,94137.0,94135.0,0.114824]
[1735753207845,0.10622984,94137.0,94135.0,0.115824]
[1735753208363,0.10622984,94137.0,94135.0,0.114824]
[1735753208656,0.10622984,94137.0,94135.0,0.115824]
[1735753211657,0.10622984,94137.0,94135.0,0.0626]
[1735753212965,0.22078955,94137.0,94135.0,0.0626]
[1735753214057,0.10622984,94137.0,94135.0,0.0626]
[1735753215546,0.10622984,94137.0,94135.0,0.0316]
[1735753215759,0.10622984,94137.0,94135.0,0.001]
[1735753216259,0.26702984,94138.0,94135.0,0.001]
[1735753216462,0.10622928,94136.0,94135.0,0.001]
[1735753216755,0.26702984,94138.0,94135.0,0.001]
[1735753216961,0.10622928,94136.0,94135.0,0.001]
[1735753217355,0.11456033,94137.0,94135.0,0.001]
[1735753217551,0.10622984,94136.0,94135.0,0.001]
[1735753219463,0.10622984,94136.0,94126.0,0.3608]
[1735753219657,0.10622984,94136.0,94135.0,0.001]
[1735753220958,0.01336619,94139.0,94135.0,0.001]
[1735753221261,0.10622984,94136.0,94126.0,0.3658]
[1735753221463,0.08459583,94140.0,94126.0,0.3658]
[1735753221663,0.10622984,94139.0,94135.0,0.001]
[1735753222057,0.11456033,94143.0,94135.0,0.001]
[1735753222260,0.10622815,94138.0,94135.0,0.001]
[1735753222565,0.01260753,94143.0,94135.0,0.001]
[1735753222760,0.0332,94144.0,94135.0,0.001]
[1735753222966,0.10622815,94137.0,94135.0,0.001]
[1735753223154,0.0332,94144.0,94135.0,0.001]
[1735753223555,0.10622533,94143.0,94135.0,0.001]
[1735753227961,0.3608,94142.0,94135.0,0.001]
[1735753228357,0.0656,94141.0,94135.0,0.001]
[1735753228558,0.17182589,94141.0,94135.0,0.001]
[1735753228756,0.47182589,94141.0,94135.0,0.001]
[1735753228963,0.58638622,94141.0,94135.0,0.001]
[1735753229359,0.58638622,94141.0,94126.0,0.3608]
[1735753229561,0.07135883,94140.0,94126.0,0.3608]
[1735753230262,0.10623267,94139.0,94126.0,0.3608]
[1735753232169,0.10623267,94139.0,94126.0,0.3658]
[1735753232659,0.10623267,94139.0,94126.0,0.3648]
[1735753232855,0.10623267,94139.0,94127.0,0.03]
[1735753234464,0.10623267,94139.0,94127.0,0.034]
[1735753235384,0.10623267,94139.0,94127.0,0.004]
[1735753236181,0.07135883,94140.0,94127.0,0.004]
[1735753236468,0.11456033,94139.0,94127.0,0.004]
[1735753236873,0.11456033,94139.0,94127.0,0.0364]
[1735753237172,0.10623267,94138.0,94127.0,0.0364]
[1735753237776,0.07135883,94140.0,94127.0,0.0364]
[1735753238076,0.10623267,94137.0,94127.0,0.0364]
[1735753238269,0.07135883,94140.0,94127.0,0.0364]
[1735753238669,0.1062321,94139.0,94127.0,0.0334]
[1735753238977,0.1062321,94139.0,94127.0,0.0364]
[1735753240276,0.1062321,94139.0,94127.0,0.0334]
[1735753240477,0.1062321,94139.0,94127.0,0.0364]
[1735753240877,0.1062321,94139.0,94127.0,0.0334]
[1735753241177,0.1062321,94139.0,94127.0,0.0364]
[1735753244092,0.3608,94128.0,94127.0,0.004]
[1735753244287,0.3608,94128.0,94098.0,0.0307]
[1735753244583,0.3608,94117.0,94102.0,0.3608]
[1735753245381,0.10625581,94116.0,94102.0,0.3608]
[1735753245582,0.10625581,94116.0,94108.0,0.01059377]
[1735753245781,0.10525581,94116.0,94108.0,0.01059377]
[1735753246282,0.21981614,94116.0,94108.0,0.01059377]
[1735753246875,0.10525581,94116.0,94108.0,0.01059377]
[1735753247384,0.10525581,94116.0,94108.0,0.01459377]
[1735753247578,0.10525581,94116.0,94108.0,0.00559377]
[1735753247782,0.10625581,94116.0,94108.0,0.01459377]
[1735753248082,0.11902403,94116.0,94108.0,0.01459377]
[1735753258890,0.23361786,94116.0,94108.0,0.01459377]
[1735753262091,0.11902403,94116.0,94108.0,0.01459377]
[1735753262890,0.11902403,94116.0,94108.0,0.013]
[1735753270990,0.23361786,94116.0,94108.0,0.013]
[1735753277494,0.11902403,94116.0,94108.0,0.013]
[1735753279896,0.23361759,94116.0,94108.0,0.013]
[1735753290710,0.11902403,94116.0,94108.0,0.013]
[1735753293009,0.11902403,94116.0,94108.0,0.066239]
[1735753293010,0.23361777,94116.0,94108.0,0.066239]
[1735753293205,0.23361777,94116.0,94109.0,0.0307]
[1735753294302,0.23361777,94116.0,94109.0,0.0397]
[1735753294611,0.23361777,94116.0,94109.0,0.0437]
[1735753299011,0.06680396,94116.0,94109.0,0.0437]
[1735753299312,0.10625581,94115.0,94109.0,0.0437]
[1735753300516,0.10725581,94115.0,94109.0,0.0437]
[1735753306712,0.10725581,94115.0,94114.0,0.053236]
[1735753307121,0.05735581,94115.0,94114.0,0.053236]
[1735753307510,0.05484462,94115.0,94114.0,0.053236]
[1735753307911,0.05484462,94115.0,94114.0,0.056236]
[1735753308213,0.05484462,94115.0,94114.0,0.065236]
[1735753324728,0.05384462,94115.0,94114.0,0.065236]
[1735753335631,0.05384462,94115.0,94114.0,0.056236]
[1735753335829,0.05384462,94115.0,94114.0,0.065236]
[1735753347354,0.09589783,94145.0,94128.0,0.053227]
[1735753347554,0.09589783,94145.0,94128.0,0.39283566]
[1735753348054,0.10625355,94144.0,94128.0,0.39283566]
[1735753348649,0.10625355,94144.0,94130.0,0.053226]
[1735753350247,0.10625355,94144.0,94130.0,0.054226]
[1735753350745,0.0851,94143.0,94130.0,0.054226]
[1735753351353,0.10622815,94142.0,94130.0,0.054226]
[1735753354652,0.07135883,94140.0,94130.0,0.054226]
[1735753355255,0.10622928,94139.0,94130.0,0.054226]
[1735753358159,0.11456582,94142.0,94130.0,0.054226]
[1735753358660,0.10623097,94138.0,94130.0,0.054226]
[1735753358964,0.0851,94143.0,94130.0,0.054226]
[1735753359261,0.10622928,94137.0,94130.0,0.054226]
[1735753359455,0.0851,94143.0,94130.0,0.054226]
[1735753359761,0.10622872,94136.0,94130.0,0.054226]
[1735753359960,0.10622872,94136.0,94130.0,0.001]
[1735753360159,0.07135883,94140.0,94130.0,0.001]
[1735753360347,0.10622872,94139.0,94130.0,0.001]
[1735753360661,0.07135883,94140.0,94130.0,0.001]
[1735753360861,0.10623041,94138.0,94130.0,0.001]
[1735753361163,0.07135883,94140.0,94130.0,0.001]
[1735753361455,0.10623041,94137.0,94130.0,0.001]
[1735753361862,0.07135883,94140.0,94128.0,0.3608]
[1735753362063,0.10623041,94139.0,94130.0,0.001]
[1735753362453,0.07135883,94140.0,94130.0,0.001]
[1735753362653,0.10623097,94138.0,94130.0,0.001]
[1735753363063,0.07135883,94140.0,94128.0,0.3628]
[1735753363363,0.10623097,94139.0,94128.0,0.3628]
[1735753363565,0.11456582,94142.0,94130.0,0.001]
[1735753363861,0.10623154,94138.0,94130.0,0.001]
[1735753364264,0.11456582,94142.0,94130.0,0.001]
[1735753364460,0.10623154,94137.0,94130.0,0.001]
[1735753364858,0.11456582,94142.0,94130.0,0.001]
[1735753365066,0.10623154,94141.0,94130.0,0.001]
[1735753365260,0.07135883,94140.0,94128.0,0.3628]
[1735753365661,0.10622984,94140.0,94128.0,0.3628]
[1735753365862,0.0851,94143.0,94130.0,0.001]
[1735753366163,0.10622984,94139.0,94130.0,0.001]
[1735753366357,0.10622984,94139.0,94128.0,0.3628]
[1735753366664,0.0851,94143.0,94128.0,0.3628]
[1735753366862,0.10623097,94142.0,94128.0,0.3628]
[1735753367057,0.0851,94143.0,94130.0,0.001]
[1735753367461,0.10623097,94142.0,94130.0,0.001]
[1735753368465,0.10623097,94142.0,94128.0,0.3628]
[1735753369159,0.10623097,94142.0,94130.0,0.001]
[1735753369667,0.10623097,94142.0,94128.0,0.3628]
[1735753370265,0.10623097,94142.0,94128.0,0.3608]
[1735753370465,0.10623097,94142.0,94130.0,0.001]
[1735753371869,0.10623097,94142.0,94128.0,0.3608]
[1735753371870,0.10623097,94142.0,94128.0,0.3628]
[1735753372563,0.10623097,94142.0,94130.0,0.001]
[1735753373064,0.10623097,94142.0,94129.0,0.0302]
[1735753374771,0.10623097,94142.0,94130.0,0.001]
[1735753375376,0.10623097,94142.0,94129.0,0.0312]
[1735753376273,0.10623097,94142.0,94130.0,0.001]
[1735753377673,0.11456582,94144.0,94129.0,0.063]
[1735753378060,0.10622928,94143.0,94129.0,0.063]
[1735753378263,0.10622928,94143.0,94130.0,0.001]
[1735753378874,0.10622928,94143.0,94129.0,0.063]
[1735753379574,0.10622928,94143.0,94130.0,0.001]
[1735753381475,0.10622928,94143.0,94129.0,0.062]
[1735753381673,0.10622928,94143.0,94129.0,0.063]
[1735753382073,0.10622928,94143.0,94129.0,0.062]
[1735753382273,0.10622928,94143.0,94130.0,0.001]
[1735753382674,0.10622928,94143.0,94129.0,0.062]
[1735753382877,0.10622928,94143.0,94129.0,0.063]
[1735753384769,0.10622928,94143.0,94130.0,0.001]
[1735753385879,0.10622928,94143.0,94129.0,0.063]
[1735753386374,0.10622928,94143.0,94129.0,0.062]
[1735753386565,0.10622928,94143.0,94130.0,0.001]
[1735753388478,0.10622928,94143.0,94129.0,0.062]
[1735753388676,0.10622928,94143.0,94129.0,0.063]
[1735753389178,0.10622928,94143.0,94130.0,0.001]
[1735753389773,0.10622928,94143.0,94129.0,0.063]
[1735753391180,0.07135883,94140.0,94129.0,0.063]
[1735753391379,0.07135883,94140.0,94129.0,0.062]
[1735753391580,0.07135883,94140.0,94130.0,0.001]
[1735753391881,0.10623097,94139.0,94130.0,0.001]
[1735753392070,0.10623097,94139.0,94129.0,0.0312]
[1735753392770,0.10623097,94139.0,94130.0,0.001]
[1735753392974,0.3608,94132.0,94109.0,0.36239374]
[1735753393271,0.3608,94119.0,94110.0,0.03]
[1735753394376,0.10625355,94118.0,94110.0,0.03]
[1735753395973,0.053237,94111.0,94110.0,0.042]
[1735753396575,0.15949111,94111.0,94110.0,0.042]
[1735753396977,0.15949111,94111.0,94110.0,0.033]
[1735753397177,0.15949111,94111.0,94110.0,0.042]
[1735753398083,0.15949111,94111.0,94110.0,0.039]
[1735753398379,0.15949111,94111.0,94110.0,0.042]
[1735753407293,0.15949111,94111.0,94110.0,0.095238]